bitfinex/quotes_BTCUSD_20240905
["timestamp","ask_amount","ask_price","bid_price","bid_amount"]
[1725556450031,1.41664408,56497.0,56496.0,0.3327665]
[1725556450032,0.96264308,56497.0,56496.0,0.3327665]
[1725556451186,0.25464108,56497.0,56496.0,0.3327665]
[1725556451434,0.57390148,56497.0,56496.0,0.3327665]
[1725556451678,0.21990048,56497.0,56496.0,0.3417665]
[1725556451925,0.57390148,56497.0,56496.0,0.3417665]
[1725556452416,0.57390148,56497.0,56496.0,0.3327665]
[1725556452668,0.57390148,56497.0,56496.0,0.3477665]
[1725556452669,0.57590148,56497.0,56496.0,0.3477665]
[1725556452907,0.95290248,56497.0,56496.0,0.3477665]
[1725556453128,0.95597838,56497.0,56496.0,0.3477665]
[1725556454236,0.57897738,56497.0,56496.0,0.3477665]
[1725556454467,0.0058919,56497.0,56496.0,0.5247695]
[1725556454695,0.0058919,56497.0,56496.0,0.3477665]
[1725556454910,0.533817,56497.0,56496.0,0.3477665]
[1725556455578,0.887818,56497.0,56496.0,0.3477665]
[1725556455816,0.000816,56502.0,56496.0,0.19127746]
[1725556456048,0.000816,56502.0,56501.0,0.75807328]
[1725556456284,0.000816,56502.0,56501.0,1.64153624]
[1725556456743,0.000816,56502.0,56501.0,2.05833305]
[1725556456963,0.000816,56502.0,56501.0,2.01135224]
[1725556457188,0.353824,56526.0,56511.0,0.884782]
[1725556457428,0.176916,56524.0,56511.0,1.227882]
[1725556457663,0.17691,56526.0,56511.0,1.227882]
[1725556458144,0.24428528,56531.0,56511.0,1.227882]
[1725556458145,0.35687504,56530.0,56511.0,1.227882]
[1725556458376,0.176911,56526.0,56511.0,1.227882]
[1725556458607,0.176912,56525.0,56511.0,1.227882]
[1725556458832,0.36744822,56530.0,56511.0,1.227882]
[1725556458833,0.001816,56512.0,56511.0,2.01759124]
[1725556459074,0.001816,56512.0,56511.0,2.02759124]
[1725556459314,0.000816,56512.0,56511.0,2.02759124]
[1725556459579,0.001816,56512.0,56511.0,2.02759124]
[1725556460707,0.001816,56512.0,56511.0,1.77130596]
[1725556461142,0.001816,56512.0,56511.0,2.02959124]
[1725556467947,0.176881,56536.0,56531.0,0.176893]
[1725556468150,0.353754,56537.0,56531.0,0.176893]
[1725556468151,0.176881,56535.0,56531.0,0.176893]
[1725556468583,0.176875,56537.0,56533.0,0.176887]
[1725556468805,0.176879,56536.0,56532.0,0.34879]
[1725556469520,0.176882,56535.0,56532.0,0.1719]
[1725556470529,0.494125,56542.0,56532.0,0.1719]
[1725556470530,0.176887,56533.0,56532.0,0.1719]
[1725556471140,0.176887,56533.0,56532.0,0.1919]
[1725556471345,0.176887,56533.0,56532.0,0.1809]
[1725556471547,0.000816,56533.0,56532.0,0.1719]
[1725556471757,0.177703,56533.0,56532.0,0.1849]
[1725556472034,0.177703,56533.0,56532.0,0.1979]
[1725556472653,0.885253,56533.0,56532.0,0.026]
[1725556472862,0.908253,56533.0,56532.0,0.026]
[1725556473417,0.554478,56533.0,56532.0,0.026]
[1725556473967,0.908253,56533.0,56532.0,0.026]
[1725556474404,0.000816,56533.0,56532.0,0.3532]
[1725556474671,0.000816,56533.0,56532.0,1.41316296]
[1725556475099,0.000816,56533.0,56532.0,1.76694396]
[1725556475468,0.000816,56533.0,56532.0,1.75394396]
[1725556476026,0.000816,56533.0,56532.0,1.76794396]
[1725556476237,0.000816,56533.0,56532.0,1.79994396]
[1725556476448,0.000816,56533.0,56532.0,1.97502396]
[1725556476662,0.000816,56533.0,56532.0,2.32880496]
[1725556476881,0.000816,56533.0,56532.0,2.34280496]
[1725556477105,0.000816,56533.0,56532.0,2.31480496]
[1725556477339,0.000816,56533.0,56532.0,1.92902396]
[1725556477551,0.07089642,56549.0,56537.0,0.176873]
[1725556477762,0.353713,56543.0,56534.0,0.353768]
[1725556477976,0.353713,56543.0,56536.0,0.176877]
[1725556478459,0.176863,56541.0,56534.0,0.353768]
[1725556478688,0.353725,56542.0,56534.0,0.176881]
[1725556478883,0.353725,56542.0,56532.0,0.680977]
[1725556478884,0.176863,56541.0,56532.0,0.680977]
[1725556479130,0.176863,56541.0,56534.0,0.353768]
[1725556479337,0.353725,56542.0,56536.0,0.176877]
[1725556479338,0.176866,56540.0,56536.0,0.176877]
[1725556479989,0.176869,56539.0,56535.0,0.176881]
[1725556480402,0.176869,56539.0,56536.0,0.190878]
[1725556480836,0.01074998,56544.0,56532.0,0.680977]
[1725556480837,0.01074998,56544.0,56532.0,0.3272]
[1725556481050,0.176877,56537.0,56536.0,0.014]
[1725556481267,0.530627,56537.0,56536.0,0.014]
[1725556481472,0.530627,56537.0,56536.0,0.028]
[1725556481473,0.907377,56537.0,56536.0,0.028]
[1725556481685,0.907377,56537.0,56536.0,0.014]
[1725556481907,0.907377,56537.0,56536.0,0.028]
[1725556481908,0.176877,56537.0,56536.0,0.028]
[1725556482369,0.35373,56541.0,56536.0,0.028]
[1725556482600,0.353734,56540.0,56536.0,0.014]
[1725556482780,0.353739,56539.0,56536.0,0.014]
[1725556483032,0.176875,56537.0,56536.0,0.014]
[1725556483486,0.176875,56537.0,56536.0,0.017]
[1725556483703,0.530625,56537.0,56536.0,0.017]
[1725556483917,0.176879,56536.0,56533.0,0.152]
[1725556484571,0.354548,56540.0,56529.0,0.176899]
[1725556484572,0.353739,56539.0,56529.0,0.176899]
[1725556484787,0.176886,56534.0,56530.0,0.176896]
[1725556484992,0.176886,56534.0,56531.0,0.176893]
[1725556485406,0.176889,56533.0,56529.0,0.176897]
[1725556485617,0.176889,56533.0,56523.0,0.353835]
[1725556485618,0.176916,56524.0,56523.0,0.1904]
[1725556485825,0.3538,56529.0,56523.0,0.1904]
[1725556486041,0.353813,56527.0,56523.0,0.1904]
[1725556486255,0.176914,56525.0,56523.0,0.1904]
[1725556486475,0.176916,56524.0,56523.0,0.1904]
[1725556486682,0.530748,56524.0,56523.0,0.1904]
[1725556487727,0.530748,56524.0,56523.0,0.2044]
[1725556487923,0.530748,56524.0,56523.0,0.2174]
[1725556488177,0.88458,56524.0,56523.0,0.013]
[1725556488430,1.399212,56524.0,56523.0,0.013]
[1725556488667,1.753044,56524.0,56523.0,0.013]
[1725556489109,1.7634382,56524.0,56523.0,0.013]
[1725556489560,1.7634382,56524.0,56523.0,0.027]
[1725556489561,1.79116522,56524.0,56523.0,0.027]
[1725556489797,1.7634382,56524.0,56523.0,0.027]
[1725556490061,1.7634382,56524.0,56523.0,0.013]
[1725556490246,0.88475,56513.0,56512.0,0.001632]
[1725556491411,0.88475,56513.0,56512.0,0.012632]
[1725556492675,0.88475,56513.0,56512.0,0.023632]
[1725556493315,0.17752875,56530.0,56516.0,0.1507]
[1725556493535,0.176923,56522.0,56516.0,0.1507]
[1725556493803,0.176925,56521.0,56516.0,0.1507]
[1725556494013,0.176922,56522.0,56518.0,0.176933]
[1725556494440,0.353842,56523.0,56520.0,0.176928]
[1725556494441,0.176921,56523.0,56520.0,0.176928]
[1725556494655,0.176919,56523.0,56518.0,0.353865]
[1725556494865,0.176923,56522.0,56517.0,0.176935]
[1725556495110,0.176923,56522.0,56518.0,0.176934]
[1725556495334,0.176923,56522.0,56516.0,0.504577]
[1725556495335,0.353837,56524.0,56519.0,0.17693]
[1725556495555,0.176927,56521.0,56519.0,0.1781]
[1725556496838,0.176927,56521.0,56519.0,0.1861]
[1725556497489,0.176927,56521.0,56519.0,0.1931]
[1725556498219,0.353846,56522.0,56519.0,0.1931]
[1725556498438,0.530785,56520.0,56519.0,0.1931]
[1725556498646,0.176928,56520.0,56519.0,0.1931]
[1725556499275,0.176928,56520.0,56519.0,0.1851]
[1725556499907,0.176928,56520.0,56519.0,0.1841]
[1725556500329,0.530785,56520.0,56519.0,0.1871]
[1725556500547,0.176928,56520.0,56519.0,0.1871]
[1725556500757,0.353851,56521.0,56519.0,0.1951]
[1725556500933,0.176928,56520.0,56519.0,0.1951]
[1725556501172,0.353846,56522.0,56519.0,0.1951]
[1725556501401,0.353833,56524.0,56519.0,0.1951]
[1725556501674,0.353829,56525.0,56519.0,0.1951]
[1725556501675,0.176925,56521.0,56519.0,0.1951]
[1725556501895,0.353851,56521.0,56519.0,0.1951]
[1725556502126,0.000816,56527.0,56519.0,0.017]
[1725556502127,0.884642,56520.0,56519.0,0.017]
[1725556502353,1.765556,56520.0,56519.0,0.017]
[1725556502577,2.416313,56520.0,56519.0,0.017]
[1725556502794,2.060456,56520.0,56519.0,0.017]
[1725556503013,2.060456,56520.0,56519.0,0.009]
[1725556503232,2.060456,56520.0,56516.0,0.001632]
[1725556503233,1.592437,56517.0,56516.0,0.001632]
[1725556503436,1.85989677,56517.0,56516.0,0.001632]
[1725556504536,1.50602177,56517.0,56516.0,0.001632]
[1725556504756,1.50602177,56517.0,56516.0,0.002632]
[1725556504977,1.261562,56517.0,56516.0,0.002632]
[1725556505239,1.261562,56517.0,56516.0,0.003632]
[1725556505444,1.50602177,56517.0,56516.0,0.003632]
[1725556506162,1.261562,56517.0,56516.0,0.003632]
[1725556506385,1.939137,56517.0,56516.0,0.003632]
[1725556506600,2.039137,56517.0,56516.0,0.003632]
[1725556508175,1.858337,56517.0,56516.0,0.003632]
[1725556508845,2.212212,56517.0,56516.0,0.003632]
[1725556509132,3.769733,56517.0,56516.0,0.003632]
[1725556509364,2.884102,56517.0,56516.0,0.003632]
[1725556509574,2.999249,56517.0,56516.0,0.003632]
[1725556510042,2.999249,56517.0,56516.0,1e-06]
[1725556510043,3.74255389,56517.0,56516.0,1e-06]
[1725556510292,1.740304,56497.0,56496.0,0.0007665]
[1725556510524,2.04604587,56497.0,56496.0,0.0007665]
[1725556510939,2.06904587,56497.0,56496.0,0.0007665]
[1725556511180,1.64374508,56497.0,56496.0,0.0007665]
[1725556511393,1.28974408,56497.0,56496.0,0.0007665]
[1725556511815,1.29074408,56497.0,56496.0,0.0007665]
[1725556512019,1.59548595,56497.0,56496.0,0.0007665]
[1725556513258,1.60798348,56497.0,56496.0,0.0007665]
[1725556513462,1.59748595,56497.0,56496.0,0.0007665]
[1725556513667,1.59848595,56497.0,56496.0,0.0007665]
[1725556513862,1.59948595,56497.0,56496.0,0.0007665]
[1725556514089,1.59548595,56497.0,56496.0,0.0007665]
[1725556514296,1.28974408,56497.0,56496.0,0.0007665]
[1725556516583,1.59548595,56497.0,56496.0,0.0007665]
[1725556516792,1.92174587,56497.0,56496.0,0.0007665]
[1725556517005,1.94948617,56497.0,56496.0,0.0007665]
[1725556517213,1.92174587,56497.0,56496.0,0.0007665]
[1725556517652,1.72566649,56497.0,56496.0,0.0007665]
[1725556517867,1.87492561,56497.0,56496.0,0.0007665]
[1725556518751,1.90266655,56497.0,56496.0,0.0007665]
[1725556518962,1.87492561,56497.0,56496.0,0.0007665]
[1725556519180,2.66422661,56497.0,56496.0,0.0007665]
[1725556519395,2.67422661,56497.0,56496.0,0.0007665]
[1725556519614,2.67622661,56497.0,56496.0,0.0007665]
[1725556520070,3.15902761,56497.0,56496.0,0.0007665]
[1725556520299,3.15902761,56497.0,56468.0,0.1]
[1725556520300,0.177069,56475.0,56470.0,0.1762]
[1725556520559,0.885345,56475.0,56470.0,0.1762]
[1725556520782,0.88541,56471.0,56470.0,0.1762]
[1725556520999,0.177094,56467.0,56466.0,0.19304]
[1725556521209,0.908472,56467.0,56466.0,0.19304]
[1725556521415,0.531283,56467.0,56466.0,0.19304]
[1725556521635,0.177094,56467.0,56466.0,0.19304]
[1725556522274,0.531283,56467.0,56466.0,0.19304]
[1725556522484,0.885472,56467.0,56466.0,0.19304]
[1725556522722,1.239661,56467.0,56466.0,0.19304]
[1725556522932,1.239661,56467.0,56466.0,0.00164]
[1725556522933,1.262661,56467.0,56466.0,0.00164]
[1725556523131,1.61685,56467.0,56466.0,0.00164]
[1725556523577,1.61685,56467.0,56466.0,0.01564]
[1725556524051,2.257139,56467.0,56466.0,0.00164]
[1725556524307,2.644129,56467.0,56466.0,0.00164]
[1725556524543,2.644129,56467.0,56466.0,0.01264]
[1725556524544,2.648129,56467.0,56466.0,0.01264]
[1725556524748,2.6585361,56467.0,56466.0,0.01264]
[1725556524955,3.0327251,56467.0,56466.0,0.01264]
[1725556525183,3.0327251,56467.0,56464.0,0.00164]
[1725556525184,1.980105,56465.0,56464.0,0.00164]
[1725556525393,3.89423,56465.0,56464.0,0.00164]
[1725556525621,3.282826,56465.0,56464.0,0.00164]
[1725556525831,3.075084,56465.0,56464.0,0.00164]
[1725556526051,3.10484383,56465.0,56464.0,0.00164]
[1725556526716,3.10484383,56465.0,56464.0,0.00264]
[1725556526717,3.10684383,56465.0,56464.0,0.00264]
[1725556527122,2.68423483,56465.0,56464.0,0.00364]
[1725556527347,2.58032683,56465.0,56464.0,0.00364]
[1725556529054,2.57832683,56465.0,56464.0,0.00364]
[1725556529258,2.26786483,56465.0,56464.0,0.00364]
[1725556529471,2.27786483,56465.0,56464.0,0.00364]
[1725556529657,1.90566383,56465.0,56464.0,0.00364]
[1725556529888,1.90366383,56465.0,56464.0,0.00364]
[1725556530333,2.27786483,56465.0,56464.0,0.00364]
[1725556530538,2.27586483,56465.0,56464.0,0.00164]
[1725556530757,2.42386483,56465.0,56464.0,0.00264]
[1725556530975,2.43486483,56465.0,56464.0,0.00364]
[1725556531181,2.28886483,56465.0,56464.0,0.00364]
[1725556531394,2.28686483,56465.0,56464.0,0.00264]
[1725556531599,2.28886483,56465.0,56464.0,0.00364]
[1725556531783,2.79631583,56465.0,56464.0,0.00364]
[1725556532293,3.31861683,56465.0,56464.0,0.00264]
[1725556532500,3.37674166,56465.0,56464.0,0.00364]
[1725556532913,3.36574166,56465.0,56464.0,0.00264]
[1725556533043,2.7656067,56465.0,56464.0,0.00264]
[1725556533277,3.2710337,56465.0,56464.0,0.00364]
[1725556533664,3.2730337,56465.0,56464.0,0.00364]
[1725556535368,2.0404057,56465.0,56464.0,0.18874]
[1725556535568,2.0404057,56465.0,56464.0,0.00364]
[1725556535836,2.06968686,56465.0,56464.0,0.00364]
[1725556536377,2.05868686,56465.0,56464.0,0.00264]
[1725556536604,2.19372703,56465.0,56464.0,0.00164]
[1725556536819,2.20372703,56465.0,56464.0,0.00264]
[1725556537034,2.21672703,56465.0,56464.0,0.00264]
[1725556537248,2.20672703,56465.0,56464.0,0.00264]
[1725556537444,2.20472703,56465.0,56464.0,0.00164]
[1725556537863,2.21872703,56465.0,56464.0,0.00264]
[1725556538074,2.22672703,56465.0,56464.0,0.00364]
[1725556538283,2.22472703,56465.0,56464.0,0.00264]
[1725556538519,3.34846503,56465.0,56464.0,0.00264]
[1725556538720,3.34846503,56465.0,56464.0,0.00364]
[1725556538721,3.35046503,56465.0,56464.0,0.00364]
[1725556538932,3.23160803,56465.0,56464.0,0.00364]
[1725556539379,3.17367803,56465.0,56464.0,0.00364]
[1725556539872,3.18167803,56465.0,56464.0,0.00364]
[1725556540079,2.94488303,56465.0,56464.0,0.00364]
[1725556540287,2.04892703,56465.0,56464.0,0.00464]
[1725556540699,2.04692703,56465.0,56464.0,0.00364]
[1725556540923,1.28698416,56465.0,56464.0,0.00364]
[1725556541130,1.28698416,56465.0,56464.0,0.00464]
[1725556541131,0.93478316,56465.0,56464.0,0.00464]
[1725556542175,1.28898416,56465.0,56464.0,0.00464]
[1725556542601,1.28898416,56465.0,56464.0,0.19074]
[1725556542602,1.01678316,56465.0,56464.0,0.19074]
[1725556543251,1.04978316,56465.0,56464.0,0.19174]
[1725556543473,0.94778316,56465.0,56464.0,0.19074]
[1725556543903,0.94778316,56465.0,56464.0,0.19174]
[1725556544124,1.30398416,56465.0,56464.0,0.19174]
[1725556544547,1.30198416,56465.0,56464.0,0.19074]
[1725556544767,0.94778316,56465.0,56464.0,0.19074]
[1725556544993,0.94778316,56465.0,56464.0,0.19174]
[1725556545633,0.93778316,56465.0,56464.0,0.19074]
[1725556546515,1.59772603,56465.0,56464.0,0.19074]
[1725556546951,1.62548412,56465.0,56464.0,0.19074]
[1725556547642,1.62548412,56465.0,56464.0,0.18974]
[1725556547840,1.62748412,56465.0,56464.0,0.19074]
[1725556548116,1.56681796,56465.0,56464.0,0.19074]
[1725556548349,1.56681796,56465.0,56464.0,0.18974]
[1725556548350,1.56481796,56465.0,56464.0,0.18974]
[1725556548548,1.53705987,56465.0,56464.0,0.18974]
[1725556548776,1.29398416,56465.0,56464.0,0.19074]
[1725556548992,0.91678316,56465.0,56464.0,0.19074]
[1725556549628,0.01,56465.0,56464.0,0.695147]
[1725556549839,0.01,56465.0,56464.0,0.34094]
[1725556550058,0.008,56465.0,56464.0,0.33994]
[1725556550488,0.177916,56466.0,56464.0,0.15284]
[1725556550721,0.177916,56466.0,56465.0,0.1684]
[1725556550943,0.532111,56466.0,56465.0,0.1684]
[1725556552752,0.177916,56466.0,56465.0,0.1684]
[1725556553376,0.177916,56466.0,56465.0,0.1694]
[1725556554991,0.532111,56466.0,56465.0,0.1694]
[1725556555386,0.177916,56466.0,56465.0,0.1694]
[1725556555936,0.532111,56466.0,56465.0,0.1694]
[1725556556381,0.177916,56466.0,56465.0,0.1694]
[1725556556612,0.000817,56466.0,56465.0,0.3465]
[1725556556838,0.000817,56466.0,56465.0,0.1694]
[1725556557482,0.177914,56466.0,56465.0,0.1694]
[1725556557714,0.000817,56466.0,56465.0,0.1694]
[1725556557926,0.177914,56466.0,56465.0,0.1694]
[1725556558152,0.000817,56466.0,56465.0,0.1694]
[1725556559088,0.000817,56466.0,56465.0,0.3465]
[1725556559305,0.000817,56466.0,56465.0,0.1694]
[1725556560123,0.000817,56466.0,56465.0,0.3465]
[1725556560360,0.177914,56466.0,56465.0,0.1694]
[1725556560609,0.000817,56466.0,56465.0,0.3465]
[1725556560812,0.000817,56466.0,56465.0,0.700701]
[1725556561244,0.177914,56466.0,56465.0,0.1694]
[1725556561503,0.886304,56466.0,56465.0,0.1694]
[1725556561726,0.909304,56466.0,56465.0,0.1694]
[1725556562146,0.000817,56466.0,56465.0,0.660301]
[1725556562358,0.000817,56466.0,56465.0,1.191602]
[1725556562586,0.000817,56466.0,56465.0,1.545803]
[1725556562817,0.000817,56466.0,56465.0,1.191602]
[1725556563031,0.000817,56466.0,56465.0,1.545803]
[1725556563251,0.000817,56466.0,56465.0,1.61218867]
[1725556563468,0.000817,56466.0,56465.0,1.96638967]
[1725556563687,0.000817,56466.0,56465.0,1.96838967]
[1725556564129,0.000817,56466.0,56465.0,1.96738967]
[1725556564376,0.000817,56466.0,56465.0,1.98138967]
[1725556564624,0.000817,56466.0,56465.0,1.99138967]
[1725556564868,0.826661,56488.0,56487.0,0.177031]
[1725556564869,0.4726,56488.0,56487.0,0.177031]
[1725556565080,0.000816,56497.0,56489.0,0.1709]
[1725556565324,0.177022,56490.0,56489.0,0.1709]
[1725556565545,1.13018571,56490.0,56489.0,0.1709]
[1725556565789,1.13018571,56490.0,56477.0,0.1328]
[1725556565790,0.53118,56478.0,56477.0,0.1328]
[1725556566014,0.177041,56484.0,56477.0,0.1328]
[1725556566237,0.177041,56484.0,56482.0,0.167]
[1725556566453,0.177044,56483.0,56482.0,0.167]
[1725556566722,0.354065,56487.0,56482.0,0.167]
[1725556566973,0.177044,56483.0,56482.0,0.167]
[1725556567183,0.023,56486.0,56482.0,0.167]
[1725556567389,0.200037,56486.0,56482.0,0.344046]
[1725556567596,0.354065,56487.0,56482.0,0.167]
[1725556567815,0.177034,56487.0,56484.0,0.167]
[1725556568041,0.354054,56489.0,56484.0,0.167]
[1725556568042,0.177031,56488.0,56484.0,0.344039]
[1725556568284,0.177031,56488.0,56485.0,0.167]
[1725556568729,0.354027,56493.0,56485.0,0.167]
[1725556568937,0.177023,56490.0,56488.0,0.1655]
[1725556569362,0.177025,56489.0,56488.0,0.1655]
[1725556570014,0.531076,56489.0,56488.0,0.1655]
[1725556570253,0.531076,56489.0,56470.0,0.1298]
[1725556570254,0.1278,56488.0,56470.0,0.1298]
[1725556570490,0.885175,56486.0,56485.0,0.002]
[1725556570696,1.593315,56486.0,56485.0,0.002]
[1725556570938,1.593315,56486.0,56466.0,0.1663]
[1725556570939,0.354129,56477.0,56466.0,0.1663]
[1725556571161,0.58403285,56486.0,56472.0,0.52650515]
[1725556571162,0.531226,56473.0,56472.0,0.52650515]
[1725556571374,0.531226,56473.0,56466.0,0.1663]
[1725556571375,0.177088,56469.0,56466.0,0.1663]
[1725556571611,0.177093,56468.0,56466.0,0.1663]
[1725556572083,0.354151,56473.0,56466.0,0.343397]
[1725556572302,0.023,56472.0,56466.0,0.1663]
[1725556572528,0.177094,56467.0,56466.0,0.1663]
[1725556572757,0.531283,56467.0,56466.0,0.1803]
[1725556573389,0.531283,56467.0,56466.0,0.1753]
[1725556573614,0.531283,56467.0,56466.0,0.1663]
[1725556573844,0.531283,56467.0,56466.0,0.1703]
[1725556574912,0.177094,56467.0,56466.0,0.1703]
[1725556575324,0.532283,56467.0,56466.0,0.1773]
[1725556575529,0.531283,56467.0,56466.0,0.1663]
[1725556575788,1.239661,56467.0,56466.0,0.1663]
[1725556576024,0.885487,56466.0,56465.0,0.001632]
[1725556576255,1.239682,56466.0,56465.0,0.001632]
[1725556576490,1.56885208,56466.0,56465.0,0.001632]
[1725556576733,2.05504708,56466.0,56465.0,0.001632]
[1725556576977,1.262682,56466.0,56465.0,0.001632]
[1725556577195,0.908487,56466.0,56465.0,0.001632]
[1725556577426,0.908487,56466.0,56465.0,0.174832]
[1725556577427,0.554292,56466.0,56465.0,0.174832]
[1725556577837,0.30617008,56474.0,56465.0,0.174832]
[1725556578047,0.531292,56466.0,56465.0,0.174832]
[1725556578546,0.531292,56466.0,56465.0,0.176832]
[1725556578982,0.531292,56466.0,56465.0,0.174832]
[1725556578983,0.885487,56466.0,56465.0,0.174832]
[1725556579204,0.885487,56466.0,56465.0,0.177832]
[1725556579458,1.262682,56466.0,56465.0,0.004632]
[1725556579899,1.262682,56466.0,56465.0,0.005632]
[1725556580558,1.262682,56466.0,56465.0,0.004632]
[1725556581203,1.616877,56466.0,56465.0,0.004632]
[1725556581874,1.262682,56466.0,56465.0,0.004632]
[1725556582116,1.262682,56466.0,56465.0,0.006632]
[1725556583889,1.263498,56466.0,56465.0,0.006632]
[1725556584764,1.263498,56466.0,56465.0,0.165132]
[1725556584969,1.29627695,56466.0,56465.0,0.165132]
[1725556585884,0.000816,56466.0,56465.0,0.165132]
[1725556586152,0.000816,56466.0,56465.0,0.69997472]
[1725556586370,0.000816,56466.0,56465.0,1.35678668]
[1725556586593,0.000816,56466.0,56465.0,1.70744596]
[1725556587046,0.000816,56466.0,56465.0,1.70544596]
[1725556588337,0.000816,56466.0,56465.0,1.70044596]
[1725556588533,0.001816,56466.0,56465.0,1.71444596]
[1725556588750,0.001816,56466.0,56465.0,1.72444596]
[1725556589196,0.001816,56466.0,56465.0,0.299232]
[1725556589416,0.001816,56466.0,56465.0,0.830533]
[1725556589644,0.001816,56466.0,56465.0,0.844533]
[1725556590092,0.001816,56466.0,56465.0,0.313232]
[1725556590546,0.887303,56466.0,56465.0,0.188132]
[1725556590768,0.887303,56466.0,56465.0,0.029632]
[1725556590769,2.06146308,56466.0,56465.0,0.029632]
[1725556591693,2.07146308,56466.0,56465.0,0.029632]
[1725556591912,2.68169654,56466.0,56465.0,0.001632]
[1725556592127,2.68169654,56466.0,56465.0,0.006632]
[1725556592128,2.67969654,56466.0,56465.0,0.006632]
[1725556592807,2.67969654,56466.0,56465.0,0.003632]
[1725556593015,2.67969654,56466.0,56465.0,0.002632]
[1725556593230,3.36840954,56466.0,56465.0,0.002632]
[1725556593434,3.36840954,56466.0,56465.0,0.003632]
[1725556593435,3.37540954,56466.0,56465.0,0.003632]
[1725556593645,3.27303754,56466.0,56465.0,0.003632]
[1725556593870,2.68869654,56466.0,56465.0,0.003632]
[1725556594479,2.79742554,56466.0,56465.0,0.002632]
[1725556594690,2.85331934,56466.0,56465.0,0.002632]
[1725556594893,2.79842554,56466.0,56465.0,0.003632]
[1725556595139,2.79842554,56466.0,56463.0,0.001632]
[1725556595140,1.980138,56464.0,56463.0,0.001632]
[1725556595342,1.14541908,56460.0,56459.0,0.00164]
[1725556595548,2.33111808,56460.0,56459.0,0.00164]
[1725556595757,2.74124457,56460.0,56459.0,0.00164]
[1725556595957,2.21333108,56456.0,56455.0,0.00164]
[1725556596166,2.39222457,56456.0,56455.0,0.00164]
[1725556596390,2.69058908,56456.0,56455.0,0.00164]
[1725556597189,2.99623608,56456.0,56455.0,0.00164]
[1725556597385,2.98433808,56456.0,56455.0,0.00164]
[1725556597799,2.98514294,56456.0,56455.0,0.00264]
[1725556598002,2.69139394,56456.0,56455.0,0.00364]
[1725556598176,2.70539394,56456.0,56455.0,0.00364]
[1725556598379,2.70539394,56456.0,56455.0,0.00164]
[1725556598579,2.72939394,56456.0,56455.0,0.00164]
[1725556598797,2.85337394,56456.0,56455.0,0.00264]
[1725556598997,2.73239394,56456.0,56455.0,0.00264]
[1725556599203,2.18843594,56456.0,56455.0,0.00264]
[1725556600598,2.19843594,56456.0,56455.0,0.00164]
[1725556600827,2.18043594,56456.0,56455.0,0.00164]
[1725556601038,2.20043594,56456.0,56455.0,0.00264]
[1725556601275,2.94189289,56456.0,56455.0,0.00264]
[1725556601491,2.88163004,56456.0,56455.0,0.00164]
[1725556601702,2.89563004,56456.0,56455.0,0.00264]
[1725556601920,2.60745704,56456.0,56455.0,0.00364]
[1725556602123,2.60745704,56456.0,56455.0,0.00264]
[1725556602124,2.94000604,56456.0,56455.0,0.00264]
[1725556602343,2.58245704,56456.0,56455.0,0.00264]
[1725556602569,2.59545704,56456.0,56455.0,0.00264]
[1725556602802,2.22119904,56456.0,56455.0,0.00164]
[1725556603024,2.22119904,56456.0,56455.0,0.00264]
[1725556603025,2.23219904,56456.0,56455.0,0.00264]
[1725556604260,2.24619904,56456.0,56455.0,0.00364]
[1725556604479,2.20819904,56456.0,56455.0,0.00164]
[1725556604704,2.21819904,56456.0,56455.0,0.00264]
[1725556604933,2.23219904,56456.0,56455.0,0.00364]
[1725556605641,2.60186704,56456.0,56455.0,0.00364]
[1725556605857,2.56651904,56456.0,56455.0,0.00364]
[1725556606089,2.24219904,56456.0,56455.0,0.00364]
[1725556606299,2.22219904,56456.0,56455.0,0.00364]
[1725556606568,1.70864104,56456.0,56455.0,0.00364]
[1725556606767,1.70864104,56456.0,56455.0,0.16464]
[1725556606768,1.57007308,56456.0,56455.0,0.16464]
[1725556606978,0.909645,56456.0,56455.0,0.16464]
[1725556607197,0.555387,56456.0,56455.0,0.16464]
[1725556607608,0.531387,56456.0,56455.0,0.16264]
[1725556607828,0.531387,56456.0,56455.0,0.16364]
[1725556607829,1.248903,56456.0,56455.0,0.16364]
[1725556608058,0.907645,56456.0,56455.0,0.16464]
[1725556608269,0.894645,56456.0,56455.0,0.13864]
[1725556608899,0.894645,56456.0,56455.0,0.13964]
[1725556609102,0.885645,56456.0,56455.0,0.13864]
[1725556609521,0.885645,56456.0,56455.0,0.13964]
[1725556610431,0.908645,56456.0,56455.0,0.13964]
[1725556610609,1.262903,56456.0,56455.0,0.13964]
[1725556610781,0.908645,56456.0,56455.0,0.13964]
[1725556611197,1.21481508,56456.0,56455.0,0.13964]
[1725556611349,1.21481508,56456.0,56455.0,0.002]
[1725556611549,0.908645,56456.0,56455.0,0.002]
[1725556612357,0.908645,56456.0,56455.0,0.1609]
[1725556613981,1.21481508,56456.0,56455.0,0.1609]
[1725556614173,1.56907308,56456.0,56455.0,0.002]
[1725556614952,1.56907308,56456.0,56455.0,0.001]
[1725556615154,0.88566,56455.0,56452.0,0.001632]
[1725556615372,0.90866,56455.0,56452.0,0.001632]
[1725556615956,0.001,56456.0,56454.0,0.16832]
[1725556616149,0.001,56456.0,56455.0,0.2886]
[1725556616150,0.003,56456.0,56455.0,0.2886]
[1725556616833,0.002,56456.0,56455.0,0.2886]
[1725556617436,0.178129,56456.0,56455.0,0.2886]
[1725556618519,0.178129,56456.0,56455.0,0.1667]
[1725556618520,0.909645,56456.0,56455.0,0.1667]
[1725556619160,0.555387,56456.0,56455.0,0.1667]
[1725556619294,0.555387,56456.0,56455.0,0.875228]
[1725556619295,0.001,56456.0,56455.0,0.875228]
[1725556619499,0.001,56456.0,56455.0,1.177192]
[1725556619698,0.001,56456.0,56455.0,1.531456]